lending/lending_fUSD_20250131
["ID","MTS","AMOUNT","RATE_DAILY","PERIOD"]
[351003399,1738282248527,-500.0,0.00019178,2]
[351003401,1738282248537,-159.103866,0.00019178,2]
[351003403,1738282248547,-159.103862,0.00019178,2]
[351003405,1738282248558,-517.40484638,0.00019178,2]
[351003407,1738282248568,-2601.33,0.00019178,2]
[351003409,1738282248579,-1420.81,0.00019178,2]
[351003411,1738282248591,-1929.28,0.00019178,2]
[351003413,1738282248601,-500.0,0.00019178,2]
[351003415,1738282248612,-500.0,0.00019178,2]
[351003417,1738282248622,-500.0,0.00019178,2]
[351003419,1738282248642,-1742.12,0.00019178,2]
[351003421,1738282248652,-500.0,0.00019178,2]
[351003423,1738282248662,-937.29,0.00019178,2]
[351003425,1738282248672,-500.0,0.00019178,2]
[351003427,1738282248685,-203.46139321,0.00019178,2]
[351003429,1738282248695,-500.0,0.00019178,2]
[351003431,1738282248705,-500.0,0.00019178,2]
[351003433,1738282248715,-503.65282424,0.00019178,2]
[351003435,1738282248726,-502.84443433,0.00019178,2]
[351003437,1738282248736,-2173.92,0.00019178,2]
[351003439,1738282248745,-4900.31,0.00019178,2]
[351003441,1738282248756,-500.0,0.00019178,2]
[351003443,1738282248766,-500.0,0.00019178,2]
[351003445,1738282248776,-500.0,0.00019178,2]
[351003447,1738282248786,-983.31,0.00019178,2]
[351003449,1738282248796,-1549.81,0.00019178,2]
[351003451,1738282248808,-1736.76378,0.00019178,2]
[351003453,1738282248818,-1736.76378,0.00019178,2]
[351003456,1738282248829,-1736.76378,0.00019178,2]
[351003457,1738282248839,-1687.49,0.00019178,2]
[351003460,1738282248851,-1736.76378,0.00019178,2]
[351003462,1738282248861,-1736.76378,0.00019178,2]
[351003464,1738282248871,-1981.35,0.00019178,2]
[351003466,1738282248880,-1736.76378,0.00019178,2]
[351003468,1738282248890,-500.0,0.00019178,2]
[351003470,1738282248899,-500.0,0.00019178,2]
[351003472,1738282248908,-511.37629887,0.00019178,2]
[351003474,1738282248918,-3405.55,0.00019178,2]
[351003476,1738282248927,-500.0,0.00019178,2]
[351003477,1738282248937,-1736.76378,0.00019178,2]
[351003480,1738282248948,-500.0,0.00019178,2]
[351003481,1738282248959,-1736.76378,0.00019178,2]
[351003483,1738282248969,-1736.76378,0.00019178,2]
[351003485,1738282248979,-1874.23,0.00019178,2]
[351003487,1738282248989,-1736.76378,0.00019178,2]
[351003489,1738282248998,-1736.76378,0.00019178,2]
[351003491,1738282249009,-500.0,0.00019178,2]
[351003493,1738282249018,-500.0,0.00019178,2]
[351003495,1738282249029,-1736.763785,0.00019178,2]
[351003497,1738282249038,-506.3455589,0.00019178,2]
[351003499,1738282249048,-1605.69,0.00019178,2]
[351003501,1738282249058,-500.0,0.00019178,2]
[351003503,1738282249068,-4106.66,0.00019178,2]
[351003505,1738282249078,-2035.27,0.00019178,2]
[351003507,1738282249088,-1212.59,0.00019178,2]
[351003509,1738282249098,-2830.05,0.00019178,2]
[351003511,1738282249108,-500.0,0.00019178,2]
[351003513,1738282249117,-500.0,0.00019178,2]
[351003515,1738282249127,-500.0,0.00019178,2]
[351003517,1738282249138,-500.0,0.00019178,2]
[351003519,1738282249148,-902.88,0.00019178,2]
[351003522,1738282249159,-500.0,0.00019178,2]
[351003524,1738282249170,-516.71,0.00019178,2]
[351003526,1738282249180,-2210.37,0.00019178,2]
[351003528,1738282249191,-500.0,0.00019178,2]
[351003530,1738282249200,-2076.87,0.00019178,2]
[351003532,1738282249210,-500.0,0.00019178,2]
[351003534,1738282249220,-500.0,0.00019178,2]
[351003536,1738282249231,-2234.81,0.00019178,2]
[351003538,1738282249240,-1622.6,0.00019178,2]
[351003540,1738282249251,-10220.82,0.00019178,2]
[351003542,1738282249261,-531.17,0.00019178,2]
[351003544,1738282249271,-863.77,0.00019178,2]
[351003546,1738282249281,-500.0,0.00019178,2]
[351003548,1738282249291,-500.0,0.00019178,2]
[351003550,1738282249301,-2883.15,0.00019178,2]
[351003552,1738282249311,-500.0,0.00019178,2]
[351003554,1738282249322,-941.04,0.00019178,2]
[351003556,1738282249333,-500.0,0.00019178,2]
[351003558,1738282249344,-500.0,0.00019178,2]
[351003560,1738282249356,-151.0,0.00019178,2]
[351003562,1738282249366,-151.0,0.00019178,2]
[351003564,1738282249376,-823.04,0.00019178,2]
[351003587,1738282249597,-3608.15,0.00019178,2]
[351003588,1738282249607,-500.0,0.00019178,2]
[351003589,1738282249616,-151.0,0.00019178,2]
[351003590,1738282249625,-151.0,0.00019178,2]
[351003591,1738282249635,-3099.8,0.00019178,2]
[351003592,1738282249644,-151.0,0.00019178,2]
[351003593,1738282249653,-500.0,0.00019178,2]
[351003594,1738282249662,-1764.41,0.00019178,2]
[351003595,1738282249671,-4082.94,0.00019178,2]
[351003597,1738282249683,-500.0,0.00019178,2]
[351003600,1738282249698,-963.08,0.00019178,2]
[351003602,1738282249708,-268.546936,0.00019178,2]
[351003604,1738282249719,-1203.07,0.00019178,2]
[351003606,1738282249729,-500.0,0.00019178,2]
[351003608,1738282249739,-1247.05,0.00019178,2]
[351003610,1738282249749,-500.0,0.00019178,2]
[351003612,1738282249759,-500.0,0.00019178,2]
[351003614,1738282249769,-1334.12,0.00019178,2]
[351003616,1738282249779,-2928.0,0.00019178,2]
[351003618,1738282249789,-1032.12,0.00019178,2]
[351003620,1738282249799,-3130.5,0.00019178,2]
[351003622,1738282249809,-2333.96,0.00019178,2]
[351003624,1738282249819,-500.0,0.00019178,2]
[351003626,1738282249829,-500.0,0.00019178,2]
[351003629,1738282249841,-500.0,0.00019178,2]
[351003631,1738282249852,-500.0,0.00019178,2]
[351003633,1738282249861,-492.0,0.00019178,2]
[351003635,1738282249871,-1140.24,0.00019178,2]
[351003637,1738282249880,-500.0,0.00019178,2]
[351003639,1738282249889,-500.0,0.00019178,2]
[351003641,1738282249899,-8700.96,0.00019178,2]
[351003643,1738282249910,-533.4,0.00019178,2]
[351003645,1738282249920,-3473.9,0.00019178,2]
[351003647,1738282249929,-1937.17,0.00019178,2]
[351003649,1738282249939,-2435.8,0.00019178,2]
[351003651,1738282249948,-4125.7,0.00019178,2]
[351003653,1738282249958,-500.0,0.00019178,2]
[351003655,1738282249968,-2256.99,0.00019178,2]
[351003657,1738282249978,-2769.31,0.00019178,2]
[351003659,1738282249987,-500.0,0.00019178,2]
[351003661,1738282249998,-2215.09,0.00019178,2]
[351003663,1738282250007,-702.17,0.00019178,2]
[351003665,1738282250018,-500.0,0.00019178,2]
[351003667,1738282250027,-151.0,0.00019178,2]
[351003669,1738282250037,-151.0,0.00019178,2]
[351003671,1738282250047,-703.952544,0.00019178,2]
[351003673,1738282250057,-151.0,0.00019178,2]
[351003675,1738282250067,-567.75,0.00019178,2]
[351003677,1738282250077,-151.0,0.00019178,2]
[351003679,1738282250089,-703.952544,0.00019178,2]
[351003681,1738282250099,-151.0,0.00019178,2]
[351003683,1738282250109,-703.952544,0.00019178,2]
[351003685,1738282250119,-703.952544,0.00019178,2]
[351003687,1738282250129,-980.01,0.00019178,2]
[351003689,1738282250138,-703.952544,0.00019178,2]
[351003691,1738282250148,-703.952544,0.00019178,2]
[351003693,1738282250158,-500.0,0.00019178,2]
[351003695,1738282250168,-500.0,0.00019178,2]
[351003697,1738282250178,-151.0,0.00019178,2]
[351003699,1738282250187,-151.0,0.00019178,2]
[351003701,1738282250202,-703.952544,0.00019178,2]
[351003703,1738282250212,-190.94132,0.00019178,2]
[351003705,1738282250222,-861.89,0.00019178,2]
[351003707,1738282250231,-802.25,0.00019178,2]
[351003709,1738282250241,-703.952544,0.00019178,2]
[351003711,1738282250251,-703.952544,0.00019178,2]
[351003713,1738282250261,-1299.51,0.00019178,2]
[351003716,1738282250271,-703.952544,0.00019178,2]
[351003718,1738282250281,-1067.19,0.00019178,2]
[351003720,1738282250291,-703.952544,0.00019178,2]
[351003722,1738282250301,-1067.19,0.00019178,2]
[351003724,1738282250311,-703.952549,0.00019178,2]
[351003726,1738282250321,-1124.58,0.00019178,2]
[351003728,1738282250332,-1067.19,0.00019178,2]
[351003730,1738282250343,-500.0,0.00019178,2]
[351003732,1738282250354,-1067.19,0.00019178,2]
[351003734,1738282250363,-1067.19,0.00019178,2]
[351003736,1738282250374,-1067.19,0.00019178,2]
[351003738,1738282250383,-1067.19,0.00019178,2]
[351003740,1738282250393,-1067.19,0.00019178,2]
[351003742,1738282250403,-500.0,0.00019178,2]
[351003744,1738282250413,-1067.19,0.00019178,2]
[351003746,1738282250423,-1067.19,0.00019178,2]
[351003747,1738282250433,-1067.19,0.00019178,2]
[351003749,1738282250443,-1067.19,0.00019178,2]
[351003751,1738282250453,-1067.19,0.00019178,2]
[351003752,1738282250464,-1067.19,0.00019178,2]
[351003754,1738282250473,-1067.19,0.00019178,2]
[351003756,1738282250483,-500.0,0.00019178,2]
[351003758,1738282250493,-1067.19,0.00019178,2]
[351003759,1738282250503,-500.0,0.00019178,2]
[351003761,1738282250513,-1067.19,0.00019178,2]
[351003763,1738282250523,-1067.19,0.00019178,2]
[351003764,1738282250532,-1898.4,0.00019178,2]
[351003766,1738282250542,-1048.65,0.00019178,2]
[351003768,1738282250552,-500.0,0.00019178,2]
[351003769,1738282250562,-1067.19,0.00019178,2]
[351003771,1738282250572,-1067.19,0.00019178,2]
[351003773,1738282250583,-1067.19,0.00019178,2]
[351003775,1738282250593,-1067.19,0.00019178,2]
[351003776,1738282250603,-857.57,0.00019178,2]
[351003778,1738282250614,-1067.19,0.00019178,2]
[351003780,1738282250623,-1067.25,0.00019178,2]
[351003782,1738282250633,-500.0,0.00019178,2]
[351003784,1738282250642,-1444.62,0.00019178,2]
[351003785,1738282250652,-4121.1,0.00019178,2]
[351003787,1738282250662,-5726.18,0.00019178,2]
[351003789,1738282250673,-500.0,0.00019178,2]
[351003790,1738282250683,-2338.3,0.00019178,2]
[351003792,1738282250693,-574.11,0.00019178,2]
[351003795,1738282250716,-522.37049478,0.00019178,2]
[351003796,1738282250727,-4490.66,0.00019178,2]
[351003798,1738282250737,-596.02,0.00019178,2]
[351003800,1738282250748,-852.81,0.00019178,2]
[351003802,1738282250758,-500.0,0.00019178,2]
[351003804,1738282250769,-500.0,0.00019178,2]
[351003805,1738282250779,-1971.77,0.00019178,2]
[351003807,1738282250790,-500.0,0.00019178,2]
[351003809,1738282250800,-913.55,0.00019178,2]
[351003811,1738282250809,-5021.87,0.00019178,2]
[351003813,1738282250820,-691.02,0.00019178,2]
[351003815,1738282250830,-500.0,0.00019178,2]
[351003817,1738282250841,-2455.72,0.00019178,2]
[351003818,1738282250851,-754.24,0.00019178,2]
[351003820,1738282250861,-601.18,0.00019178,2]
[351003822,1738282250872,-814.43,0.00019178,2]
[351003824,1738282250882,-518.39,0.00019178,2]
[351003826,1738282250893,-500.0,0.00019178,2]
[351003828,1738282250903,-11668.16,0.00019178,2]
[351003830,1738282250913,-500.0,0.00019178,2]
[351003831,1738282250923,-2758.15,0.00019178,2]
[351003833,1738282250934,-3474.02,0.00019178,2]
[351003835,1738282250944,-1672.19,0.00019178,2]
[351003837,1738282250955,-1886.75,0.00019178,2]
[351003839,1738282250965,-500.0,0.00019178,2]
[351003841,1738282250975,-2165.14,0.00019178,2]
[351003843,1738282250985,-533.52,0.00019178,2]
[351003844,1738282250995,-2604.78,0.00019178,2]
[351003846,1738282251006,-2201.38,0.00019178,2]
[351003848,1738282251016,-500.0,0.00019178,2]
[351003850,1738282251026,-2773.8,0.00019178,2]
[351003852,1738282251040,-500.0,0.00019178,2]
[351003854,1738282251052,-1133.48,0.00019178,2]
[351003856,1738282251062,-18160.54,0.00019178,2]
[351003857,1738282251073,-6147.47,0.00019178,2]
[351003859,1738282251082,-500.0,0.00019178,2]
[351003861,1738282251093,-3111.56,0.00019178,2]
[351003863,1738282251102,-500.0,0.00019178,2]
[351003865,1738282251112,-500.0,0.00019178,2]
[351003867,1738282251121,-2440.02,0.00019178,2]
[351003868,1738282251132,-504.26733016,0.00019178,2]
[351003870,1738282251142,-3782.14,0.00019178,2]
[351003872,1738282251152,-3279.4,0.00019178,2]
[351003874,1738282251162,-500.0,0.00019178,2]
[351003877,1738282251186,-518.91,0.00019178,2]
[351003880,1738282251217,-511.76167704,0.00019178,2]
[351003883,1738282251233,-1062.63,0.00019178,2]
[351003886,1738282251255,-2155.62,0.00019178,2]
[351003888,1738282251274,-9210.12,0.00019178,2]
[351003891,1738282251295,-859.68,0.00019178,2]
[351003893,1738282251311,-7812.53,0.00019178,2]
[351003896,1738282251331,-696.08,0.00019178,2]
[351003899,1738282251350,-151.0,0.00019178,2]
[351003901,1738282251368,-3691.41,0.00019178,2]
[351003903,1738282251388,-151.0,0.00019178,2]
[351003904,1738282251403,-151.0,0.00019178,2]
[351003905,1738282251422,-151.0,0.00019178,2]
[351003906,1738282251441,-2781.71,0.00019178,2]
[351003907,1738282251458,-217.161669,0.00019178,2]
[351003908,1738282251476,-151.0,0.00019178,2]
[351003910,1738282251502,-151.0,0.00019178,2]
[351003913,1738282251521,-218.90454424,0.00019178,2]
[351003915,1738282251535,-500.0,0.00019178,2]
[351003918,1738282251555,-1005.13,0.00019178,2]
[351003921,1738282251569,-3087.45,0.00019178,2]
[351003923,1738282251581,-500.0,0.00019178,2]
[351003926,1738282251598,-500.0,0.00019178,2]
[351003929,1738282251620,-694.66,0.00019178,2]
[351003931,1738282251633,-500.980948,0.00019178,2]
[351003934,1738282251649,-793.31,0.00019178,2]
[351003937,1738282251667,-5318.45,0.00019178,2]
[351003940,1738282251691,-1324.42,0.00019178,2]
[351003943,1738282251710,-332.127399,0.00019178,2]
[351003946,1738282251731,-332.127399,0.00019178,2]
[351003949,1738282251751,-3055.09,0.00019178,2]
[351003953,1738282251771,-332.127399,0.00019178,2]
[351003956,1738282251790,-151.0,0.00019178,2]
[351003958,1738282251807,-332.127399,0.00019178,2]
[351003961,1738282251823,-151.0,0.00019178,2]
[351003964,1738282251840,-332.127399,0.00019178,2]
[351003966,1738282251857,-151.0,0.00019178,2]
[351003969,1738282251874,-151.0,0.00019178,2]
[351003972,1738282251892,-1458.12,0.00019178,2]
[351003975,1738282251909,-260.335762,0.00019178,2]
[351003978,1738282251925,-528.96,0.00019178,2]
[351003980,1738282251941,-2843.59,0.00019178,2]
[351003984,1738282251965,-4190.59,0.00019178,2]
[351003986,1738282251980,-332.127399,0.00019178,2]
[351003989,1738282251996,-332.127399,0.00019178,2]
[351003991,1738282252011,-332.127399,0.00019178,2]
[351003994,1738282252026,-332.127399,0.00019178,2]
[351003997,1738282252042,-332.127404,0.00019178,2]
[351003999,1738282252057,-500.0,0.00019178,2]
[351004002,1738282252073,-1673.2,0.00019178,2]
[351004004,1738282252088,-500.0,0.00019178,2]
[351004007,1738282252104,-500.0,0.00019178,2]
[351004010,1738282252119,-500.0,0.00019178,2]
[351004012,1738282252134,-1672.99,0.00019178,2]
[351004015,1738282252150,-610.67,0.00019178,2]
[351004018,1738282252165,-3676.96,0.00019178,2]
[351004020,1738282252180,-2842.0,0.00019178,2]
[351004023,1738282252196,-500.0,0.00019178,2]
[351004026,1738282252212,-737.47,0.00019178,2]
[351004028,1738282252227,-500.0,0.00019178,2]
[351004031,1738282252242,-500.0,0.00019178,2]
[351004034,1738282252257,-1252.53,0.00019178,2]
[351004036,1738282252272,-2203.31,0.00019178,2]
[351004039,1738282252287,-500.0,0.00019178,2]
[351004041,1738282252301,-1572.77,0.00019178,2]
[351004044,1738282252315,-2466.03,0.00019178,2]
[351004046,1738282252330,-13332.76,0.00019178,2]
[351004049,1738282252346,-932.56,0.00019178,2]
[351004052,1738282252361,-500.0,0.00019178,2]
[351004054,1738282252376,-2461.61,0.00019178,2]
[351004057,1738282252392,-500.0,0.00019178,2]
[351004059,1738282252406,-2491.5,0.00019178,2]
[351004062,1738282252422,-500.0,0.00019178,2]
[351004065,1738282252436,-500.0,0.00019178,2]
[351004067,1738282252451,-1669.64,0.00019178,2]
[351004070,1738282252465,-3459.82,0.00019178,2]
[351004072,1738282252479,-500.0,0.00019178,2]
[351004075,1738282252494,-8514.26,0.00019178,2]
[351004077,1738282252508,-2472.6,0.00019178,2]
[351004080,1738282252523,-500.0,0.00019178,2]
[351004082,1738282252538,-615.04,0.00019178,2]
[351004085,1738282252554,-500.0,0.00019178,2]
[351004088,1738282252568,-500.0,0.00019178,2]
[351004090,1738282252583,-500.0,0.00019178,2]
[351004093,1738282252599,-506.95493617,0.00019178,2]
[351004095,1738282252614,-500.0,0.00019178,2]
[351004098,1738282252629,-500.0,0.00019178,2]
[351004100,1738282252643,-3035.07,0.00019178,2]
[351004103,1738282252658,-500.0,0.00019178,2]
[351004105,1738282252673,-3151.93,0.00019178,2]
[351004108,1738282252690,-261.922305,0.00019178,2]
[351004110,1738282252704,-261.922305,0.00019178,2]
[351004113,1738282252718,-752.6,0.00019178,2]
[351004115,1738282252734,-261.922305,0.00019178,2]
[351004118,1738282252749,-946.02,0.00019178,2]
[351004120,1738282252764,-261.922305,0.00019178,2]
[351004123,1738282252778,-5307.17,0.00019178,2]
[351004125,1738282252793,-615.11,0.00019178,2]
[351004128,1738282252808,-261.922305,0.00019178,2]
[351004130,1738282252823,-500.0,0.00019178,2]
[351004133,1738282252837,-500.0,0.00019178,2]
[351004135,1738282252852,-261.922305,0.00019178,2]
[351004138,1738282252868,-261.922305,0.00019178,2]
[351004141,1738282252883,-500.0,0.00019178,2]
[351004143,1738282252898,-261.922305,0.00019178,2]
[351004146,1738282252912,-261.922305,0.00019178,2]
[351004148,1738282252926,-261.922301,0.00019178,2]
[351004151,1738282252941,-500.0,0.00019178,2]
[351004153,1738282252956,-1389.36,0.00019178,2]
[351004156,1738282252971,-500.0,0.00019178,2]
[351004159,1738282252985,-500.0,0.00019178,2]
[351004161,1738282253000,-838.18,0.00019178,2]
[351004164,1738282253014,-1112.47,0.00019178,2]
[351004166,1738282253029,-500.0,0.00019178,2]
[351004168,1738282253043,-500.0,0.00019178,2]
[351004171,1738282253059,-1217.3,0.00019178,2]
[351004173,1738282253073,-5473.6,0.00019178,2]
[351004176,1738282253089,-500.0,0.00019178,2]
[351004179,1738282253105,-500.0,0.00019178,2]
[351004181,1738282253120,-500.0,0.00019178,2]
[351004184,1738282253136,-500.0,0.00019178,2]
[351004186,1738282253151,-712.18,0.00019178,2]
[351004189,1738282253166,-573.31,0.00019178,2]
[351004191,1738282253180,-2567.47,0.00019178,2]
[351004194,1738282253195,-643.25,0.00019178,2]
[351004196,1738282253209,-500.0,0.00019178,2]
[351004199,1738282253223,-4858.91,0.00019178,2]
[351004201,1738282253238,-1365.03405381,0.00019178,2]
[351004204,1738282253254,-500.0,0.00019178,2]
[351004207,1738282253270,-500.0,0.00019178,2]
[351004209,1738282253286,-500.0,0.00019178,2]
[351004211,1738282253297,-890.24,0.00019178,2]
[351004213,1738282253306,-1726.39,0.00019178,2]
[351004215,1738282253316,-500.0,0.00019178,2]
[351004217,1738282253326,-1038.5,0.00019178,2]
[351004219,1738282253335,-893.88,0.00019178,2]
[351004221,1738282253345,-1436.67,0.00019178,2]
[351004223,1738282253355,-540.06995193,0.00019178,2]
[351004225,1738282253364,-2827.86,0.00019178,2]
[351004227,1738282253374,-450.6707935,0.00019178,2]
[351004230,1738282253386,-500.0,0.00019178,2]
[351004232,1738282253396,-500.0,0.00019178,2]
[351004234,1738282253406,-627.03,0.00019178,2]
[351004236,1738282253415,-500.0,0.00019178,2]
[351004238,1738282253425,-500.0,0.00019178,2]
[351004240,1738282253435,-500.0,0.00019178,2]
[351004242,1738282253444,-500.0,0.00019178,2]
[351004244,1738282253454,-500.0,0.00019178,2]
[351004278,1738282253869,-500.0,0.00019178,2]
[351004283,1738282253909,-859.77,0.00019178,2]
[351004286,1738282253930,-500.0,0.00019178,2]
[351004288,1738282253939,-500.0,0.00019178,2]
[351004290,1738282253948,-1018.78,0.00019178,2]
[351004292,1738282253958,-2163.85,0.00019178,2]
[351004294,1738282253967,-500.0,0.00019178,2]
[351004296,1738282253977,-1088.02,0.00019178,2]
[351004298,1738282253986,-1275.59,0.00019178,2]
[351004300,1738282253996,-500.0,0.00019178,2]
[351004303,1738282254006,-545.79,0.00019178,2]
[351004305,1738282254015,-504.41474577,0.00019178,2]
[351004307,1738282254025,-500.0,0.00019178,2]
[351004309,1738282254034,-862.91,0.00019178,2]
[351004311,1738282254045,-500.0,0.00019178,2]
[351004313,1738282254055,-500.0,0.00019178,2]
[351004315,1738282254064,-1442.45,0.00019178,2]
[351004317,1738282254074,-500.0,0.00019178,2]
[351004319,1738282254083,-500.0,0.00019178,2]
[351004321,1738282254093,-1046.15,0.00019178,2]
[351004323,1738282254104,-500.0,0.00019178,2]
[351004325,1738282254115,-539.31,0.00019178,2]
[351004327,1738282254126,-709.55,0.00019178,2]
[351004329,1738282254135,-2026.37,0.00019178,2]
[351004331,1738282254144,-708.32,0.00019178,2]
[351004333,1738282254154,-2950.82,0.00019178,2]
[351004335,1738282254164,-500.0,0.00019178,2]
[351004337,1738282254174,-500.0,0.00019178,2]
[351004339,1738282254183,-1248.5721574,0.00019178,2]
[351004341,1738282254194,-206.956946,0.00019178,2]
[351004343,1738282254204,-151.0,0.00019178,2]
[351004345,1738282254214,-151.0,0.00019178,2]
[351004347,1738282254223,-206.956946,0.00019178,2]
[351004349,1738282254233,-757.7,0.00019178,2]
[351004351,1738282254242,-206.956946,0.00019178,2]
[351004353,1738282254252,-151.0,0.00019178,2]
[351004355,1738282254261,-206.956946,0.00019178,2]
[351004357,1738282254270,-151.0,0.00019178,2]
[351004359,1738282254280,-206.956946,0.00019178,2]
[351004361,1738282254290,-151.0,0.00019178,2]
[351004363,1738282254300,-1866.75,0.00019178,2]
[351004365,1738282254309,-206.715434,0.00019178,2]
[351004367,1738282254319,-151.0,0.00019178,2]
[351004369,1738282254329,-206.956946,0.00019178,2]
[351004371,1738282254340,-151.0,0.00019178,2]
[351004373,1738282254350,-206.956946,0.00019178,2]
[351004375,1738282254359,-151.0,0.00019178,2]
[351004377,1738282254369,-206.715434,0.00019178,2]
[351004379,1738282254378,-206.956946,0.00019178,2]
[351004381,1738282254388,-179.507491,0.00019178,2]
[351004383,1738282254399,-206.956946,0.00019178,2]
[351004385,1738282254408,-206.715434,0.00019178,2]
[351004387,1738282254419,-500.0,0.00019178,2]
[351004389,1738282254429,-206.956936,0.00019178,2]
[351004391,1738282254439,-206.715434,0.00019178,2]
[351004393,1738282254449,-206.715434,0.00019178,2]
[351004395,1738282254458,-1161.21,0.00019178,2]
[351004397,1738282254467,-910.43,0.00019178,2]
[351004399,1738282254478,-500.0,0.00019178,2]
[351004401,1738282254488,-3754.21,0.00019178,2]
[351004403,1738282254498,-2734.34,0.00019178,2]
[351004405,1738282254507,-206.715434,0.00019178,2]
[351004407,1738282254517,-1311.32,0.00019178,2]
[351004409,1738282254526,-206.715434,0.00019178,2]
[351004411,1738282254536,-500.0,0.00019178,2]
[351004413,1738282254545,-206.715434,0.00019178,2]
[351004415,1738282254555,-206.715434,0.00019178,2]
[351004417,1738282254565,-206.715428,0.00019178,2]
[351004419,1738282254575,-150.61,0.00019178,2]
[351004421,1738282254585,-252.653,0.00019191,2]
[351004423,1738282254596,-170.213,0.00019191,2]
[351004425,1738282254606,-2021.0,0.00019191,2]
[351004427,1738282254615,-1271.0,0.00019191,2]
[351004429,1738282254625,-150.0,0.00019191,2]
[351004431,1738282254634,-637.0,0.00019191,2]
[351004433,1738282254643,-568.0,0.00019191,2]
[351004435,1738282254653,-1866.0,0.00019191,2]
[351004437,1738282254663,-907.0,0.00019191,2]
[351004439,1738282254673,-2951.0,0.00019191,2]
[351004441,1738282254687,-782.0,0.00019191,2]
[351004444,1738282254698,-1263.0,0.00019191,2]
[351004445,1738282254707,-150.0,0.00019191,2]
[351004447,1738282254716,-538.0,0.00019191,2]
[351004449,1738282254727,-313.23,0.00019196,2]
[351004451,1738282254737,-150.0,0.00019204,2]
[351004453,1738282254746,-150.0,0.00019205,2]
[351004455,1738282254758,-596.2,0.00019205,2]
[351004457,1738282254767,-150.68,0.00019205,2]
[351004459,1738282254776,-151.37,0.00019205,2]
[351004461,1738282254786,-438.27,0.00019205,2]
[351004463,1738282254796,-150.0,0.00019205,2]
[351004465,1738282254805,-150.0,0.00019205,2]
[351004467,1738282254815,-150.0,0.00019205,2]
[351004469,1738282254824,-438.27,0.00019205,2]
[351004471,1738282254833,-150.0,0.00019205,2]
[351004473,1738282254842,-150.0,0.00019205,2]
[351004475,1738282254852,-150.0,0.00019205,2]
[351004478,1738282254862,-150.0,0.00019205,2]
[351004480,1738282254872,-437.76,0.00019205,2]
[351004482,1738282254881,-150.0,0.00019205,2]
[351004484,1738282254890,-150.0,0.00019205,2]
[351004486,1738282254900,-157.63265749,0.00019215,2]
[351004487,1738282254909,-171.65678644,0.00019215,2]
[351004489,1738282254918,-150.0,0.00019238,2]
[351004491,1738282254927,-211.0,0.0001924,2]
[351004493,1738282254936,-150.0,0.00019241,2]
[351004495,1738282254945,-240.74842453,0.00019247,2]
[351004497,1738282254955,-189.05,0.00019257,2]
[351004499,1738282254964,-150.0,0.00019272,2]
[351004501,1738282254974,-150.0,0.00019279,2]
[351004503,1738282254984,-150.0,0.000193,2]
[351004505,1738282254994,-734.59,0.0001931,2]
[351004507,1738282255004,-7697.79305445,0.00019314,2]
[351004509,1738282255013,-300.0,0.00019314,2]
[351004511,1738282255023,-500.0,0.00019314,2]